fUST/lending_fUST_20241223
["ID","MTS","AMOUNT","RATE_DAILY","PERIOD"]
[346344314,1734900655679,-951.87,0.00016438,7]
[346344315,1734900655689,-951.87,0.00016438,7]
[346344316,1734900655699,-951.87,0.00016438,7]
[346344317,1734900655709,-951.87,0.00016438,7]
[346344318,1734900655719,-951.87,0.00016438,7]
[346344319,1734900655728,-951.87,0.00016438,7]
[346344320,1734900655738,-952.09647356,0.00016438,7]
[346344321,1734900655748,-500.0,0.00016438,2]
[346344322,1734900655758,-635.59,0.00016438,2]
[346344323,1734900655768,-500.0,0.00016438,2]
[346344324,1734900655778,-500.0,0.00016438,2]
[346344325,1734900655788,-598.19006353,0.00016438,2]
[346344326,1734900655799,-500.0,0.00016438,2]
[346344327,1734900655810,-500.0,0.00016438,2]
[346344328,1734900655822,-302.8899443,0.00016438,2]
[346344329,1734900655833,-764.23,0.00016438,2]
[346344330,1734900655843,-764.23,0.00016438,2]
[346344331,1734900655853,-764.23,0.00016438,2]
[346344332,1734900655863,-764.23,0.00016438,2]
[346344333,1734900655873,-764.23,0.00016438,2]
[346344334,1734900655884,-764.23,0.00016438,2]
[346344335,1734900655894,-764.23,0.00016438,2]
[346344336,1734900655905,-764.23,0.00016438,2]
[346344337,1734900655915,-764.23,0.00016438,2]
[346344338,1734900655925,-764.23,0.00016438,2]
[346344339,1734900655934,-764.23,0.00016438,2]
[346344340,1734900655944,-1241.53,0.00016438,2]
[346344341,1734900655954,-500.0,0.00016438,2]
[346344342,1734900656181,-500.0,0.00016438,2]
[346344343,1734900656208,-765.88,0.00016438,2]
[346344344,1734900656221,-579.49,0.00016438,2]
[346344345,1734900656231,-500.0,0.00016438,2]
[346344346,1734900656240,-500.0,0.00016438,2]
[346344347,1734900656250,-754.75,0.00016438,2]
[346344348,1734900656259,-500.0,0.00016438,2]
[346344349,1734900656268,-500.0,0.00016438,2]
[346344350,1734900656278,-500.0,0.00016438,2]
[346344351,1734900656287,-500.0,0.00016438,2]
[346344352,1734900656296,-585.04,0.00016438,2]
[346344353,1734900656306,-500.0,0.00016438,2]
[346344354,1734900656317,-500.0,0.00016438,2]
[346344355,1734900656326,-531.76,0.00016438,2]
[346344356,1734900656336,-651.85,0.00016438,2]
[346344357,1734900656345,-500.0,0.00016438,2]
[346344358,1734900656358,-429.37192239,0.00016438,2]
[346344359,1734900656367,-500.0,0.00016438,2]
[346344360,1734900656377,-505.7,0.00016438,2]
[346344361,1734900656387,-200.0,0.00016438,2]
[346344362,1734900656396,-200.0,0.00016438,2]
[346344363,1734900656406,-200.0,0.00016438,2]
[346344364,1734900656416,-200.0,0.00016438,2]
[346344365,1734900656426,-200.0,0.00016438,2]
[346344366,1734900656435,-200.0,0.00016438,2]
[346344367,1734900656444,-200.0,0.00016438,2]
[346344368,1734900656453,-200.0,0.00016438,2]
[346344369,1734900656462,-200.0,0.00016438,2]
[346344370,1734900656471,-200.0,0.00016438,2]
[346344371,1734900656480,-202.56004705,0.00016438,2]
[346344372,1734900656490,-500.0,0.00016438,2]
[346344373,1734900656499,-912.92,0.00016438,2]
[346344374,1734900656509,-500.0,0.00016438,2]
[346344375,1734900656518,-1920.65,0.00016438,2]
[346344376,1734900656527,-500.0,0.00016438,2]
[346344377,1734900656536,-4340.77,0.00016438,2]
[346344378,1734900656545,-500.0,0.00016438,2]
[346344379,1734900656554,-14749.26,0.00016438,2]
[346344380,1734900656564,-484.04481494,0.00016438,2]
[346344381,1734900656573,-7227.1,0.00016438,2]
[346344382,1734900656582,-1079.66,0.00016438,2]
[346344383,1734900656592,-553.39696517,0.00016438,2]
[346344384,1734900656601,-1242.33,0.00016438,2]
[346344385,1734900656611,-651.52,0.00016438,2]
[346344386,1734900656620,-500.0,0.00016438,2]
[346344387,1734900656630,-5023.38,0.00016438,2]
[346344388,1734900656639,-812.7,0.00016438,2]
[346344389,1734900656648,-500.0,0.00016438,2]
[346344390,1734900656658,-744.16,0.00016438,2]
[346344391,1734900656667,-5575.55,0.00016438,2]
[346344392,1734900656676,-500.0,0.00016438,2]
[346344393,1734900656685,-500.0,0.00016438,2]
[346344394,1734900656695,-777.11,0.00016438,2]
[346344395,1734900656704,-500.0,0.00016438,2]
[346344396,1734900656714,-500.0,0.00016438,2]
[346344397,1734900656723,-1609.14,0.00016438,2]
[346344398,1734900656734,-1837.05,0.00016438,2]
[346344399,1734900656743,-500.0,0.00016438,2]
[346344400,1734900656753,-683.18,0.00016438,2]
[346344401,1734900656763,-500.0,0.00016438,2]
[346344402,1734900656773,-500.0,0.00016438,2]
[346344403,1734900656783,-1552.26,0.00016438,2]
[346344404,1734900656792,-813.0,0.00016438,2]
[346344405,1734900656802,-500.0,0.00016438,2]
[346344406,1734900656813,-851.36,0.00016438,2]
[346344407,1734900656822,-512.65,0.00016438,2]
[346344408,1734900656832,-607.98,0.00016438,2]
[346344409,1734900656842,-500.0,0.00016438,2]
[346344410,1734900656851,-500.0,0.00016438,2]
[346344411,1734900656861,-626.46,0.00016438,2]
[346344412,1734900656871,-1474.99,0.00016438,2]
[346344413,1734900656879,-1105.27,0.00016438,2]
[346344414,1734900656889,-616.63,0.00016438,2]
[346344415,1734900656898,-564.08,0.00016438,2]
[346344416,1734900656908,-500.0,0.00016438,2]
[346344417,1734900656918,-500.0,0.00016438,2]
[346344418,1734900656928,-500.0,0.00016438,2]
[346344419,1734900656937,-500.0,0.00016438,2]
[346344420,1734900656947,-500.0,0.00016438,2]
[346344421,1734900656956,-500.0,0.00016438,2]
[346344422,1734900656965,-500.0,0.00016438,2]
[346344423,1734900656975,-500.0,0.00016438,2]
[346344424,1734900656985,-500.0,0.00016438,2]
[346344425,1734900656995,-500.0,0.00016438,2]
[346344426,1734900657005,-500.0,0.00016438,2]
[346344427,1734900657015,-500.0,0.00016438,2]
[346344428,1734900657024,-500.0,0.00016438,2]
[346344429,1734900657034,-500.0,0.00016438,2]
[346344430,1734900657043,-500.0,0.00016438,2]
[346344431,1734900657053,-500.0,0.00016438,2]
[346344432,1734900657062,-500.0,0.00016438,2]
[346344433,1734900657074,-500.0,0.00016438,2]
[346344434,1734900657083,-500.0,0.00016438,2]
[346344435,1734900657093,-500.0,0.00016438,2]
[346344436,1734900657102,-500.0,0.00016438,2]
[346344437,1734900657112,-500.0,0.00016438,2]
[346344438,1734900657122,-500.0,0.00016438,2]
[346344439,1734900657131,-500.0,0.00016438,2]
[346344440,1734900657141,-500.0,0.00016438,2]
[346344441,1734900657151,-500.0,0.00016438,2]
[346344442,1734900657161,-500.0,0.00016438,2]
[346344443,1734900657172,-500.0,0.00016438,2]
[346344444,1734900657182,-500.0,0.00016438,2]
[346344445,1734900657193,-500.0,0.00016438,2]
[346344446,1734900657202,-500.0,0.00016438,2]
[346344447,1734900657212,-500.0,0.00016438,2]
[346344448,1734900657222,-500.0,0.00016438,2]
[346344449,1734900657231,-172.23574135,0.00016438,2]
[346344450,1734900657242,-500.0,0.00016438,2]
[346344451,1734900657251,-500.0,0.00016438,2]
[346344452,1734900657262,-500.0,0.00016438,2]
[346344453,1734900657271,-500.0,0.00016438,2]
[346344454,1734900657280,-500.0,0.00016438,2]
[346344455,1734900657290,-4507.19174779,0.0001644,2]
[346344456,1734900657299,-4507.19174779,0.0001644,2]
[346344457,1734900657308,-4507.19174779,0.0001644,2]
[346344458,1734900657320,-4507.19174779,0.0001644,2]
[346344459,1734900657329,-4507.19174779,0.0001644,2]
[346344460,1734900657338,-4507.19174779,0.0001644,2]
[346344461,1734900657348,-4507.19174779,0.0001644,2]
[346344462,1734900657361,-4507.19174779,0.0001644,2]
[346344463,1734900657370,-4507.19174779,0.0001644,2]
[346344464,1734900657379,-4507.19174779,0.0001644,2]
[346344465,1734900657390,-4507.19174779,0.0001644,2]
[346344466,1734900657399,-4507.19174779,0.0001644,2]
[346344467,1734900657409,-4507.19174779,0.0001644,2]
[346344468,1734900657418,-4507.19174779,0.0001644,2]
[346344469,1734900657428,-4507.19174779,0.0001644,2]
[346344470,1734900657438,-4507.19174779,0.0001644,2]
[346344471,1734900657448,-4507.19174779,0.0001644,2]
[346344472,1734900657458,-4507.19174779,0.0001644,2]
[346344473,1734900657467,-4507.19174779,0.0001644,2]
[346344474,1734900657477,-4507.19,0.0001644,2]
[346344475,1734900657487,-1395.51337782,0.0001644,2]
[346344476,1734900657496,-1395.51337782,0.0001644,2]
[346344477,1734900657506,-1395.51337782,0.0001644,2]
[346344478,1734900657515,-1395.51337782,0.0001644,2]
[346344479,1734900657525,-1395.51337782,0.0001644,2]
[346344480,1734900657534,-1395.51337782,0.0001644,2]
[346344481,1734900657543,-1395.51337782,0.0001644,2]
[346344482,1734900657553,-1395.51337782,0.0001644,2]
[346344483,1734900657563,-1395.51337782,0.0001644,2]
[346344484,1734900657574,-1395.51337782,0.0001644,2]
[346344485,1734900657584,-1395.51337782,0.0001644,2]
[346344486,1734900657594,-1395.51337782,0.0001644,2]
[346344487,1734900657604,-1395.51337782,0.0001644,2]
[346344488,1734900657614,-1395.51337782,0.0001644,2]
[346344489,1734900657624,-1395.51337782,0.0001644,2]
[346344490,1734900657633,-1395.51337782,0.0001644,2]
[346344491,1734900657642,-1395.51337782,0.0001644,2]
[346344492,1734900657653,-1395.51337782,0.0001644,2]
[346344493,1734900657662,-1395.51337782,0.0001644,2]
[346344494,1734900657672,-1395.51,0.0001644,2]
[346344495,1734900657682,-164.59185063,0.0001644,2]
[346344496,1734900657691,-164.59185063,0.0001644,2]
[346344497,1734900657701,-164.59185063,0.0001644,2]
[346344498,1734900657710,-164.59185063,0.0001644,2]
[346344499,1734900657720,-164.59,0.0001644,2]
[346344500,1734900657729,-587.0,0.0001645,2]
[346344501,1734900657739,-160.89800181,0.00016473,2]
[346344502,1734900657749,-376.84645118,0.00016473,2]
[346344503,1734900657758,-153.0,0.00016489,2]
[346344504,1734900657768,-624144.33071678,0.000165,2]
[346344505,1734900657895,-608.01692346,0.000165,2]
[346344506,1734900660552,414.643,0.00022,120]
[346344507,1734900660874,310.087292,0.00022,120]
[346344508,1734900661165,932.5,0.00022,120]
[346344509,1734900691019,160.0,0.00020141,120]
[346344513,1734901627137,-3337.34797368,0.00013598,2]
[346344514,1734901627158,-369.81191273,0.00013598,2]
[346344515,1734901750697,7037.83,0.0001011,2]
[346344516,1734901752133,-163.99133742,0.00013697,2]
[346344517,1734901752155,-300.0,0.00013697,2]
[346344518,1734901752176,-161.5096449,0.00013698,2]
[346344519,1734901752197,-500.0,0.00013698,2]
[346344520,1734901752221,-500.0,0.00013698,2]
[346344521,1734901752242,-500.0,0.00013698,2]
[346344522,1734901752264,-500.0,0.00013698,2]
[346344523,1734901752285,-500.0,0.00013698,2]
[346344524,1734901752306,-500.0,0.00013698,2]
[346344525,1734901752327,-500.0,0.00013698,2]
[346344526,1734901752348,-500.0,0.00013698,2]
[346344527,1734901752368,-500.0,0.00013698,2]
[346344528,1734901752389,-500.0,0.00013698,2]
[346344529,1734901752409,-500.0,0.00013698,2]
[346344530,1734901752430,-500.0,0.00013698,2]
[346344531,1734901752450,-607.58,0.00013698,2]
[346344532,1734901752471,-500.0,0.00013698,2]
[346344533,1734901752684,-500.0,0.00013698,2]
[346344534,1734901752706,-500.0,0.00013698,2]
[346344535,1734901752728,-500.0,0.00013698,2]
[346344536,1734901752751,-550.78,0.00013698,2]
[346344537,1734901752772,-672.5,0.00013698,2]
[346344538,1734901752792,-500.0,0.00013698,2]
[346344539,1734901752813,-500.0,0.00013698,2]
[346344540,1734901752836,-500.0,0.00013698,2]
[346344541,1734901752857,-500.0,0.00013698,2]
[346344542,1734901752878,-500.0,0.00013698,2]
[346344543,1734901752898,-500.0,0.00013698,2]
[346344544,1734901752919,-500.0,0.00013698,2]
[346344545,1734901752939,-500.0,0.00013698,2]
[346344546,1734901752959,-500.0,0.00013698,2]
[346344547,1734901752981,-500.0,0.00013698,2]
[346344548,1734901753002,-500.0,0.00013698,2]
[346344549,1734901753022,-500.0,0.00013698,2]
[346344550,1734901753043,-500.0,0.00013698,2]
[346344551,1734901753064,-500.0,0.00013698,2]
[346344552,1734901753085,-500.0,0.00013698,2]
[346344553,1734901753106,-500.0,0.00013698,2]
[346344554,1734901753128,-1130.74,0.00013698,2]
[346344555,1734901753150,-1075.08,0.00013698,2]
[346344556,1734901753171,-500.0,0.00013698,2]
[346344557,1734901753193,-1021.75,0.00013698,2]
[346344558,1734901753215,-500.0,0.00013698,2]
[346344559,1734901753236,-500.0,0.00013698,2]
[346344560,1734901753258,-560.66,0.00013698,2]
[346344561,1734901753280,-500.0,0.00013698,2]
[346344562,1734901753302,-532.74,0.00013698,2]
[346344563,1734901753324,-500.0,0.00013698,2]
[346344564,1734901753345,-798.95,0.00013698,2]
[346344565,1734901753366,-749.34,0.00013698,2]
[346344566,1734901753388,-500.0,0.00013698,2]
[346344567,1734901753409,-500.0,0.00013698,2]
[346344568,1734901753429,-500.0,0.00013698,2]
[346344569,1734901753452,-500.0,0.00013698,2]
[346344570,1734901753475,-9738.82,0.00013698,2]
[346344571,1734901753496,-1040.35,0.00013698,2]
[346344572,1734901753518,-500.0,0.00013698,2]
[346344573,1734901753540,-500.0,0.00013698,2]
[346344574,1734901753561,-500.0,0.00013698,2]
[346344575,1734901753582,-500.0,0.00013698,2]
[346344576,1734901753602,-500.0,0.00013698,2]
[346344577,1734901753623,-617.39,0.00013698,2]
[346344578,1734901753645,-500.0,0.00013698,2]
[346344579,1734901753666,-3637.99,0.00013698,2]
[346344580,1734901753692,-500.0,0.00013698,2]
[346344581,1734901753714,-500.0,0.00013698,2]
[346344582,1734901753735,-500.0,0.00013698,2]
[346344583,1734901753758,-500.0,0.00013698,2]
[346344584,1734901753778,-664.65,0.00013698,2]
[346344585,1734901753799,-500.0,0.00013698,2]
[346344586,1734901753820,-500.0,0.00013698,2]
[346344587,1734901753843,-500.0,0.00013698,2]
[346344588,1734901753865,-500.0,0.00013698,2]
[346344589,1734901753887,-824.37,0.00013698,2]
[346344590,1734901753908,-609.44,0.00013698,2]
[346344591,1734901753930,-5822.56,0.00013698,2]
[346344592,1734901753951,-217.56834856,0.00013698,2]
[346344593,1734901771154,-282.43165144,0.00013698,2]
[346344594,1734901771177,-2043.08734466,0.00013698,2]
[346344647,1734901832912,-300.0,0.00013696,2]
[346344649,1734901832922,-1648.56265534,0.00013698,2]
[346344651,1734901832932,-204.27543556,0.00013698,2]
[346344653,1734901832942,-538.47,0.00013698,2]
[346344655,1734901832951,-500.0,0.00013698,2]
[346344657,1734901832960,-500.0,0.00013698,2]
[346344659,1734901832970,-500.0,0.00013698,2]
[346344661,1734901832978,-500.0,0.00013698,2]
[346344663,1734901832988,-500.0,0.00013698,2]
[346344665,1734901832996,-500.0,0.00013698,2]
[346344667,1734901833006,-500.0,0.00013698,2]
[346344669,1734901833015,-2853.18,0.00013698,2]
[346344671,1734901833024,-500.0,0.00013698,2]
[346344673,1734901833034,-500.0,0.00013698,2]
[346344675,1734901833044,-500.0,0.00013698,2]
[346344677,1734901833054,-500.0,0.00013698,2]
[346344679,1734901833063,-500.0,0.00013698,2]
[346344681,1734901833073,-500.0,0.00013698,2]
[346344683,1734901833083,-500.0,0.00013698,2]
[346344685,1734901833092,-573.25,0.00013698,2]
[346344687,1734901833102,-500.0,0.00013698,2]
[346344689,1734901833112,-91.43277748,0.00013698,2]
[346344692,1734901833125,-408.56722252,0.00013698,2]
[346344694,1734901833135,-500.0,0.00013698,2]
[346344696,1734901833145,-500.0,0.00013698,2]
[346344698,1734901833154,-500.0,0.00013698,2]
[346344700,1734901833163,-500.0,0.00013698,2]
[346344702,1734901833173,-500.0,0.00013698,2]
[346344704,1734901833182,-202.13661517,0.00013698,2]
[346344706,1734901833193,-297.86338483,0.00013698,2]
[346344708,1734901833207,-500.0,0.00013698,2]
[346344710,1734901833217,-1083.63,0.00013698,2]
[346344711,1734901833226,-500.0,0.00013698,2]
[346344712,1734901833236,-500.0,0.00013698,2]
[346344713,1734901833246,-92.58664031,0.00013698,2]
[346345223,1734901838821,-837.93738416,0.00013698,2]
[346345225,1734901838833,-48.65597553,0.00013698,2]
[346345227,1734901838842,-260.00911911,0.00013698,2]
[346345229,1734901838854,-277.29088089,0.00013698,2]
[346345231,1734901838863,-500.0,0.00013698,2]
[346345233,1734901838872,-718.12,0.00013698,2]
[346345235,1734901838882,-500.0,0.00013698,2]
[346345237,1734901838891,-765.66,0.00013698,2]
[346345239,1734901838901,-500.0,0.00013698,2]
[346345241,1734901838910,-1030.28,0.00013698,2]
[346345243,1734901838919,-500.0,0.00013698,2]
[346345245,1734901838929,-500.0,0.00013698,2]
[346345248,1734901838938,-500.0,0.00013698,2]
[346345252,1734901838948,-30.20245543,0.00013698,2]
[346345255,1734901838959,-469.79754457,0.00013698,2]
[346345258,1734901838968,-500.0,0.00013698,2]
[346345261,1734901838977,-997.01,0.00013698,2]
[346345264,1734901838986,-510.54,0.00013698,2]
[346345267,1734901838995,-7863.65245543,0.00013698,2]
[346345270,1734901839006,-555.255,0.00013698,2]
[346345332,1734901840704,-582.04603108,0.00013698,2]
[346345338,1734901840768,-332.08651349,0.00013698,2]
[346345340,1734901840779,-2728.49,0.00013698,2]
[346345342,1734901840804,-506.08,0.00013698,2]
[346345343,1734901840814,-500.0,0.00013871,2]
[346345344,1734901840824,-500.0,0.00013871,2]
[346345345,1734901840834,-500.0,0.00013871,2]
[346345346,1734901840844,-500.0,0.00013871,2]
[346345347,1734901840854,-500.0,0.00013871,2]
[346345348,1734901840863,-275.95416749,0.00013871,2]
[346345349,1734901840875,-224.04583251,0.00013871,2]
[346345350,1734901840885,-500.0,0.00013871,2]
[346345351,1734901840895,-500.0,0.00013871,2]
[346345352,1734901840904,-500.0,0.00013871,2]
[346345353,1734901840913,-316.75640829,0.00013871,2]
[346345405,1734901843772,-183.24359171,0.00013871,2]
[346345407,1734901843781,-500.0,0.00013871,2]
[346345408,1734901843791,-500.0,0.00013871,2]
[346345409,1734901843800,-500.0,0.00013871,2]
[346345410,1734901843809,-500.0,0.00013871,2]
[346345411,1734901843818,-500.0,0.00013871,2]
[346345412,1734901843828,-500.0,0.00013871,2]
[346345413,1734901843837,-500.0,0.00013871,2]
[346345414,1734901843847,-500.0,0.00013871,2]
[346345415,1734901843856,-500.0,0.00013871,2]
[346345416,1734901843866,-500.0,0.00013871,2]
[346345417,1734901843875,-56.66027305,0.00013871,2]
[346345418,1734901843887,-443.33972695,0.00013871,2]
[346345419,1734901843897,-500.0,0.00013871,2]
[346345420,1734901843907,-56.66027305,0.00013871,2]
[346345421,1734901843926,-443.33972695,0.00013871,2]
[346345422,1734901843935,-500.0,0.00013871,2]
[346345423,1734901843944,-500.0,0.00013871,2]
[346345424,1734901843953,-500.0,0.00013871,2]
[346345425,1734901843962,-320.0,0.00013871,2]
[346345426,1734901843971,-500.0,0.00013871,2]
[346345427,1734901843981,-500.0,0.00013871,2]
[346345428,1734901843990,-298.18027305,0.00013871,2]
[346345429,1734901844002,-201.81972695,0.00013871,2]
[346345430,1734901844012,-642.75821313,0.00013872,2]
[346345431,1734901844022,-2669.87837892,0.00013872,2]
[346345432,1734901844031,-506.0,0.000139,4]
[346345433,1734901844040,-500.0,0.00013971,2]
[346345434,1734901844050,-183.70602231,0.00013971,2]
[346345435,1734901844059,-611.65267957,0.00013971,2]
[346345436,1734901844069,-500.0,0.00013972,2]
[346345437,1734901844078,-500.0,0.00013972,2]
[346345438,1734901844087,-500.0,0.00013972,2]
[346345439,1734901844096,-500.0,0.00013972,2]
[346345440,1734901844105,-500.0,0.00013972,2]
[346345441,1734901844114,-500.0,0.00013972,2]
[346345442,1734901844124,-620.79,0.00013972,2]
[346345443,1734901844133,-500.0,0.00013972,2]
[346345444,1734901844142,-500.0,0.00013972,2]
[346345445,1734901844151,-500.0,0.00013972,2]
[346345446,1734901844161,-550.78,0.00013972,2]
[346345447,1734901844170,-672.5,0.00013972,2]
[346345448,1734901844180,-500.0,0.00013972,2]
[346345449,1734901844189,-230.45149217,0.00013972,2]
[346345450,1734901844199,-500.0,0.00013972,2]
[346345451,1734901844208,-500.0,0.00013972,2]
[346345452,1734901844217,-500.0,0.00013972,2]
[346345453,1734901844226,-500.0,0.00013972,2]
[346345454,1734901844235,-500.0,0.00013972,2]
[346345455,1734901844245,-500.0,0.00013972,2]
[346345456,1734901844254,-500.0,0.00013972,2]
[346345457,1734901844263,-500.0,0.00013972,2]
[346345458,1734901844273,-500.0,0.00013972,2]
[346345459,1734901844282,-500.0,0.00013972,2]
[346345460,1734901844291,-500.0,0.00013972,2]
[346345461,1734901844301,-500.0,0.00013972,2]
[346345462,1734901844310,-500.0,0.00013972,2]
[346345463,1734901844320,-500.0,0.00013972,2]
[346345464,1734901844329,-612.14,0.00013972,2]
[346345465,1734901844339,-500.0,0.00013972,2]
[346345466,1734901844349,-500.0,0.00013972,2]
[346345467,1734901844358,-500.0,0.00013972,2]
[346345468,1734901844368,-500.0,0.00013972,2]
[346345469,1734901844377,-617.39,0.00013972,2]
[346345470,1734901844387,-500.0,0.00013972,2]
[346345471,1734901844397,-664.65,0.00013972,2]
[346345472,1734901844406,-500.0,0.00013972,2]
[346345473,1734901844416,-500.0,0.00013972,2]
[346345474,1734901844425,-824.37,0.00013972,2]
[346345475,1734901844434,-5822.56,0.00013972,2]
[346345476,1734901844443,-500.0,0.00013972,2]
[346345477,1734901844453,-3691.65,0.00013972,2]
[346345478,1734901844462,-538.47,0.00013972,2]
[346345479,1734901844472,-500.0,0.00013972,2]
[346345480,1734901844481,-500.0,0.00013972,2]
[346345481,1734901844490,-2853.18,0.00013972,2]
[346345482,1734901844499,-500.0,0.00013972,2]
[346345483,1734901844508,-500.0,0.00013972,2]
[346345484,1734901844517,-500.0,0.00013972,2]
[346345485,1734901844526,-500.0,0.00013972,2]
[346345486,1734901844538,-500.0,0.00013972,2]
[346345487,1734901844547,-500.0,0.00013972,2]
[346345488,1734901844556,-500.0,0.00013972,2]
[346345489,1734901844565,-500.0,0.00013972,2]
[346345490,1734901844574,-500.0,0.00013972,2]
[346345491,1734901844583,-500.0,0.00013972,2]
[346345492,1734901844592,-1083.63,0.00013972,2]
[346345493,1734901844602,-500.0,0.00013972,2]
[346345494,1734901844611,-500.0,0.00013972,2]
[346345495,1734901844620,-979.18,0.00013972,2]
[346345496,1734901844629,-537.3,0.00013972,2]
[346345497,1734901844638,-500.0,0.00013972,2]
[346345498,1734901844648,-718.12,0.00013972,2]
[346345499,1734901844657,-500.0,0.00013972,2]
[346345500,1734901844666,-765.66,0.00013972,2]
[346345501,1734901844675,-500.0,0.00013972,2]
[346345502,1734901844684,-1030.28,0.00013972,2]
[346345503,1734901844693,-500.0,0.00013972,2]
[346345504,1734901844702,-500.0,0.00013972,2]
[346345505,1734901844712,-500.0,0.00013972,2]
[346345506,1734901844725,-500.0,0.00013972,2]
[346345507,1734901844734,-500.0,0.00013972,2]
[346345508,1734901844743,-997.01,0.00013972,2]
[346345509,1734901844752,-510.54,0.00013972,2]
[346345510,1734901844763,-9333.04,0.00013972,2]
[346345511,1734901844772,-2728.49,0.00013972,2]
[346345512,1734901844781,-506.08,0.00013972,2]
[346345513,1734901844790,-400.0,0.00013973,2]
[346345514,1734901844799,-2669.87837891,0.00014215,2]
[346345515,1734901844808,-500.0,0.00014246,2]
[346345516,1734901844817,-589.93036546,0.00014246,2]
[346345517,1734901844826,-500.0,0.00014246,2]
[346345518,1734901844835,-500.0,0.00014246,2]
[346345519,1734901844844,-500.0,0.00014246,2]
[346345520,1734901844853,-500.0,0.00014246,2]
[346345521,1734901844862,-500.0,0.00014246,2]
[346345522,1734901844871,-500.0,0.00014246,2]
[346345523,1734901844881,-500.0,0.00014246,2]
[346345524,1734901844890,-550.78,0.00014246,2]
[346345525,1734901844899,-672.5,0.00014246,2]
[346345526,1734901844908,-166.38,0.00014246,2]
[346345527,1734901844917,-500.0,0.00014246,2]
[346345528,1734901844926,-500.0,0.00014246,2]
[346345529,1734901844935,-500.0,0.00014246,2]
[346345530,1734901844944,-500.0,0.00014246,2]
[346345531,1734901844953,-500.0,0.00014246,2]
[346345532,1734901844963,-500.0,0.00014246,2]
[346345533,1734901844972,-500.0,0.00014246,2]
[346345534,1734901844981,-500.0,0.00014246,2]
[346345535,1734901844991,-500.0,0.00014246,2]
[346345536,1734901845000,-500.0,0.00014246,2]
[346345537,1734901845010,-500.0,0.00014246,2]
[346345538,1734901845019,-500.0,0.00014246,2]
[346345539,1734901845028,-500.0,0.00014246,2]
[346345540,1734901845038,-500.0,0.00014246,2]
[346345541,1734901845047,-500.0,0.00014246,2]
[346345542,1734901845056,-500.0,0.00014246,2]
[346345543,1734901845066,-481.26275247,0.00014246,2]
[346345544,1734901845075,-500.0,0.00014246,2]
[346345545,1734901845085,-617.39,0.00014246,2]
[346345546,1734901845094,-489.9377422,0.00014246,2]
[346345547,1734901845131,-664.65,0.00014246,2]
[346345548,1734901845140,-232.23,0.00014246,2]
[346345549,1734901845149,-404.48722223,0.00014246,2]
[346345550,1734901845159,-824.37,0.00014246,2]
[346345551,1734901845168,-5822.56,0.00014246,2]
[346345552,1734901845177,-500.0,0.00014246,2]
[346345553,1734901845186,-3691.65,0.00014246,2]
[346345554,1734901845195,-538.47,0.00014246,2]
[346345555,1734901845204,-500.0,0.00014246,2]
[346345556,1734901845213,-500.0,0.00014246,2]
[346345557,1734901845223,-2853.18,0.00014246,2]